[Event "Titled Tuesday Blitz December 06 Late 2022"]
[White "Hernandez Jimenez, Alexander Andres"]
[Black "Antonio, Jorge Carlos"]
[WhiteFideId "3900452"]
[BlackFideId "113190"]
[WhiteElo "2098"]
[BlackElo "2247"]
[Result "1-0"]
[Round "08"]
[TimeControl "180+1"]
[Date "2022.12.07"]
[WhiteClock "0:00:04"]
[BlackClock "0:00:15"]

1. e4 {[%clk 0:02:36]}  Nf6 {[%clk 0:02:57]} 2. e5 {[%clk 0:02:36]}  Nd5 {[%clk 0:02:56]} 3. d4 {[%clk 0:02:36]}  c5 {[%clk 0:02:50]} 4. c4 {[%clk 0:02:34]}  Nc7 {[%clk 0:02:42]} 5. d5 {[%clk 0:02:33]}  d6 {[%clk 0:02:38]} 6. Nf3 {[%clk 0:02:29]}  b5 {[%clk 0:02:33]} 7. cxb5 {[%clk 0:02:21]}  g6 {[%clk 0:02:29]} 8. Nc3 {[%clk 0:02:20]}  Bg7 {[%clk 0:02:26]} 9. exd6 {[%clk 0:02:19]}  Qxd6 {[%clk 0:02:22]} 10. Bc4 {[%clk 0:02:10]}  Bxc3+ {[%clk 0:02:14]} 11. bxc3 {[%clk 0:02:10]}  Nd7 {[%clk 0:02:10]} 12. O-O {[%clk 0:01:51]}  Nb6 {[%clk 0:02:06]} 13. Qe2 {[%clk 0:01:39]}  Nxc4 {[%clk 0:02:01]} 14. Qxc4 {[%clk 0:01:39]}  Qxd5 {[%clk 0:01:58]} 15. Qa4 {[%clk 0:01:38]}  O-O {[%clk 0:01:54]} 16. Bh6 {[%clk 0:01:37]}  Re8 {[%clk 0:01:47]} 17. Rad1 {[%clk 0:01:36]}  Qh5 {[%clk 0:01:41]} 18. Bf4 {[%clk 0:01:35]}  Nd5 {[%clk 0:01:37]} 19. b6 {[%clk 0:01:33]}  Bg4 {[%clk 0:01:32]} 20. b7 {[%clk 0:01:31]}  Rad8 {[%clk 0:01:25]} 21. Rxd5 {[%clk 0:01:16]}  Qxd5 {[%clk 0:01:19]} 22. b8=Q {[%clk 0:01:10]}  Rxb8 {[%clk 0:01:15]} 23. Bxb8 {[%clk 0:01:09]}  Rxb8 {[%clk 0:01:10]} 24. Qxg4 {[%clk 0:01:09]}  Qxa2 {[%clk 0:01:00]} 25. h4 {[%clk 0:01:03]}  Rb1 {[%clk 0:00:54]} 26. Rxb1 {[%clk 0:00:59]}  Qxb1+ {[%clk 0:00:53]} 27. Kh2 {[%clk 0:01:00]}  Qf5 {[%clk 0:00:43]} 28. Qxf5 {[%clk 0:00:37]}  gxf5 {[%clk 0:00:42]} 29. Kg3 {[%clk 0:00:37]}  e6 {[%clk 0:00:36]} 30. Kf4 {[%clk 0:00:37]}  f6 {[%clk 0:00:33]} 31. Ke3 {[%clk 0:00:33]}  e5 {[%clk 0:00:30]} 32. Nd2 {[%clk 0:00:27]}  a5 {[%clk 0:00:26]} 33. Nb3 {[%clk 0:00:19]}  a4 {[%clk 0:00:23]} 34. Nxc5 {[%clk 0:00:19]}  a3 {[%clk 0:00:19]} 35. Nb3 {[%clk 0:00:18]}  Kf7 {[%clk 0:00:17]} 36. c4 {[%clk 0:00:16]}  Ke6 {[%clk 0:00:17]} 37. g3 {[%clk 0:00:13]}  Kd6 {[%clk 0:00:17]} 38. Kd3 {[%clk 0:00:13]}  Kc6 {[%clk 0:00:16]} 39. Kc3 {[%clk 0:00:13]}  h5 {[%clk 0:00:15]} 40. Kb4 {[%clk 0:00:13]}  a2 {[%clk 0:00:14]} 41. Ka3 {[%clk 0:00:13]}  f4 {[%clk 0:00:13]} 42. gxf4 {[%clk 0:00:10]}  e4 {[%clk 0:00:13]} 43. Kxa2 {[%clk 0:00:09]}  Kd6 {[%clk 0:00:13]} 44. Kb2 {[%clk 0:00:09]}  Ke6 {[%clk 0:00:14]} 45. Kc3 {[%clk 0:00:09]}  Kf5 {[%clk 0:00:15]} 46. c5 {[%clk 0:00:09]}  Kxf4 {[%clk 0:00:16]} 47. c6 {[%clk 0:00:09]}  Kf3 {[%clk 0:00:16]} 48. c7 {[%clk 0:00:09]}  Kxf2 {[%clk 0:00:17]} 49. c8=Q {[%clk 0:00:09]}  e3 {[%clk 0:00:18]} 50. Qf5+ {[%clk 0:00:09]}  Ke1 {[%clk 0:00:17]} 51. Nd4 {[%clk 0:00:08]}  e2 {[%clk 0:00:18]} 52. Qd3 {[%clk 0:00:06]}  Kf2 {[%clk 0:00:17]} 53. Qxe2+ {[%clk 0:00:06]}  Kg3 {[%clk 0:00:18]} 54. Qf3+ {[%clk 0:00:06]}  Kxh4 {[%clk 0:00:17]} 55. Qxf6+ {[%clk 0:00:07]}  Kg4 {[%clk 0:00:17]} 56. Qf3+ {[%clk 0:00:05]}  Kg5 {[%clk 0:00:16]} 57. Ne6+ {[%clk 0:00:05]}  Kg6 {[%clk 0:00:16]} 58. Nf8+ {[%clk 0:00:04]}  Kg5 {[%clk 0:00:15]} 59. Ne6+ {[%clk 0:00:04]}  Kg6 {[%clk 0:00:15]} 60. Nf4+ {[%clk 0:00:05]}  Kg5 {[%clk 0:00:15]} 61. Qxh5+ {[%clk 0:00:04]}  Kxf4 {[%clk 0:00:16]} 62. Qe2 {[%clk 0:00:04]}  Kf5 {[%clk 0:00:15]} 63. Kd4 {[%clk 0:00:04]}  Kf4 {[%clk 0:00:16]} 64. Qe3+ {[%clk 0:00:04]}  Kf5 {[%clk 0:00:16]} 65. Qf3+ {[%clk 0:00:04]}  Kg5 {[%clk 0:00:16]} 66. Ke4 {[%clk 0:00:04]}  Kg6 {[%clk 0:00:16]} 67. Qf5+ {[%clk 0:00:04]}  Kg7 {[%clk 0:00:16]} 68. Ke5 {[%clk 0:00:04]}  Kh6 {[%clk 0:00:15]} 69. Qg4 {[%clk 0:00:04]}  Kh7 {[%clk 0:00:15]} 70. Kf6 {[%clk 0:00:04]}  Kh8 {[%clk 0:00:15]} 71. Qg7# {[%clk 0:00:04]} 1-0


[Site "https://www.chess.com"]

[Event "Titled Tuesday Blitz December 06 Late 2022"]
[White "Hoffmann, Asa"]
[Black "Bogaudinov, Rushan"]
[WhiteFideId "2001470"]
[BlackFideId "4129288"]
[WhiteElo "2117"]
[BlackElo "2028"]
[Result "0-1"]
[Round "08"]
[TimeControl "180+1"]
[Date "2022.12.07"]
[WhiteClock "0:00:18"]
[BlackClock "0:00:19"]

1. d4 {[%clk 0:02:41]}  Nf6 {[%clk 0:02:59]} 2. Bg5 {[%clk 0:02:35]}  d5 {[%clk 0:02:58]} 3. Nd2 {[%clk 0:02:34]}  c6 {[%clk 0:02:55]} 4. e3 {[%clk 0:02:34]}  Bf5 {[%clk 0:02:54]} 5. c4 {[%clk 0:02:34]}  e6 {[%clk 0:02:54]} 6. Qb3 {[%clk 0:02:34]}  Qb6 {[%clk 0:02:53]} 7. c5 {[%clk 0:02:33]}  Qxb3 {[%clk 0:02:51]} 8. axb3 {[%clk 0:02:33]}  Ne4 {[%clk 0:02:49]} 9. Nxe4 {[%clk 0:02:32]}  Bxe4 {[%clk 0:02:49]} 10. b4 {[%clk 0:02:28]}  Nd7 {[%clk 0:02:49]} 11. b5 {[%clk 0:02:27]}  f6 {[%clk 0:02:48]} 12. Bh4 {[%clk 0:02:26]}  e5 {[%clk 0:02:38]} 13. f3 {[%clk 0:02:25]}  Bg6 {[%clk 0:02:28]} 14. Bg3 {[%clk 0:02:18]}  h5 {[%clk 0:02:23]} 15. h4 {[%clk 0:02:18]}  Be7 {[%clk 0:02:22]} 16. Ne2 {[%clk 0:02:17]}  O-O {[%clk 0:02:20]} 17. Nc3 {[%clk 0:02:16]}  Rfe8 {[%clk 0:02:13]} 18. Kd2 {[%clk 0:02:14]}  Bf8 {[%clk 0:02:02]} 19. b4 {[%clk 0:02:11]}  Bf5 {[%clk 0:01:50]} 20. bxc6 {[%clk 0:02:08]}  bxc6 {[%clk 0:01:50]} 21. b5 {[%clk 0:02:08]}  cxb5 {[%clk 0:01:46]} 22. Bxb5 {[%clk 0:02:00]}  Reb8 {[%clk 0:01:34]} 23. Ra5 {[%clk 0:01:44]}  a6 {[%clk 0:01:28]} 24. Rha1 {[%clk 0:01:36]}  Nxc5 {[%clk 0:01:20]} 25. dxc5 {[%clk 0:01:32]}  Bxc5 {[%clk 0:01:20]} 26. e4 {[%clk 0:01:27]}  Bb4 {[%clk 0:01:08]} 27. Rxa6 {[%clk 0:01:23]}  Rxa6 {[%clk 0:01:07]} 28. Bxa6 {[%clk 0:01:15]}  d4 {[%clk 0:01:05]} 29. Bc4+ {[%clk 0:01:05]}  Kh7 {[%clk 0:01:03]} 30. Kd3 {[%clk 0:00:56]}  Bxc3 {[%clk 0:01:01]} 31. Ra7 {[%clk 0:00:53]}  Bc8 {[%clk 0:00:46]} 32. f4 {[%clk 0:00:52]}  Rb2 {[%clk 0:00:43]} 33. Bd5 {[%clk 0:00:47]}  Bg4 {[%clk 0:00:38]} 34. Kc4 {[%clk 0:00:46]}  Be2+ {[%clk 0:00:36]} 35. Kc5 {[%clk 0:00:45]}  d3 {[%clk 0:00:36]} 36. fxe5 {[%clk 0:00:39]}  fxe5 {[%clk 0:00:35]} 37. Kc4 {[%clk 0:00:28]}  d2+ {[%clk 0:00:27]} 38. Kxc3 {[%clk 0:00:27]}  d1=Q {[%clk 0:00:26]} 39. Kxb2 {[%clk 0:00:26]}  Qd4+ {[%clk 0:00:25]} 40. Kb3 {[%clk 0:00:25]}  Bd1+ {[%clk 0:00:22]} 41. Ka3 {[%clk 0:00:22]}  Qxa7+ {[%clk 0:00:21]} 42. Kb4 {[%clk 0:00:21]}  Qb6+ {[%clk 0:00:20]} 43. Kc4 {[%clk 0:00:20]}  Be2+ {[%clk 0:00:19]} 44. Kc3 {[%clk 0:00:20]}  Qe3+ {[%clk 0:00:19]} 45. Kb4 {[%clk 0:00:18]}  Qxg3 {[%clk 0:00:19]} 0-1


[Site "https://www.chess.com"]

[Event "Titled Tuesday Blitz December 06 Late 2022"]
[White "Jarmula, Lukasz"]
[Black "Zhigalko, Sergei"]
[WhiteFideId "1160664"]
[BlackFideId "13502956"]
[WhiteElo "2357"]
[BlackElo "2662"]
[Result "0-1"]
[Round "08"]
[TimeControl "180+1"]
[Date "2022.12.06"]
[WhiteClock "0:01:40"]
[BlackClock "0:02:37"]

1. e4 {[%clk 0:03:00]}  c5 {[%clk 0:02:59]} 2. Nf3 {[%clk 0:03:00]}  Nc6 {[%clk 0:03:00]} 3. Bb5 {[%clk 0:03:00]}  Nf6 {[%clk 0:03:00]} 4. Nc3 {[%clk 0:02:59]}  Qc7 {[%clk 0:03:00]} 5. O-O {[%clk 0:02:58]}  Nd4 {[%clk 0:03:01]} 6. Re1 {[%clk 0:02:55]}  a6 {[%clk 0:03:01]} 7. Bf1 {[%clk 0:02:46]}  Ng4 {[%clk 0:02:59]} 8. g3 {[%clk 0:02:33]}  Nxf3+ {[%clk 0:02:58]} 9. Qxf3 {[%clk 0:02:32]}  Ne5 {[%clk 0:02:59]} 10. Qe2 {[%clk 0:02:29]}  e6 {[%clk 0:03:00]} 11. Bg2 {[%clk 0:02:25]}  Be7 {[%clk 0:02:59]} 12. d3 {[%clk 0:02:23]}  O-O {[%clk 0:02:59]} 13. Bf4 {[%clk 0:02:23]}  d6 {[%clk 0:02:59]} 14. a4 {[%clk 0:02:22]}  Rb8 {[%clk 0:02:56]} 15. h4 {[%clk 0:02:14]}  b5 {[%clk 0:02:54]} 16. axb5 {[%clk 0:02:14]}  axb5 {[%clk 0:02:55]} 17. h5 {[%clk 0:02:14]}  h6 {[%clk 0:02:54]} 18. Nd1 {[%clk 0:02:06]}  Bf6 {[%clk 0:02:46]} 19. Ne3 {[%clk 0:02:04]}  b4 {[%clk 0:02:42]} 20. b3 {[%clk 0:01:46]}  Bd7 {[%clk 0:02:38]} 21. Rac1 {[%clk 0:01:40]}  Ra8 {[%clk 0:02:36]} 22. Ng4 {[%clk 0:01:40]}  Nxg4 {[%clk 0:02:36]} 23. Qxg4 {[%clk 0:01:40]}  e5 {[%clk 0:02:37]} 0-1


[Site "https://www.chess.com"]

[Event "Titled Tuesday Blitz December 06 Late 2022"]
[White "Jaskolka, Tomasz"]
[Black "monkins"]
[WhiteFideId "1170791"]
[WhiteElo "2126"]
[BlackElo "2236"]
[Result "1-0"]
[Round "08"]
[TimeControl "180+1"]
[Date "2022.12.07"]
[WhiteClock "0:01:34"]
[BlackClock "0:00:07"]

1. e4 {[%clk 0:03:00]}  c6 {[%clk 0:02:58]} 2. d4 {[%clk 0:03:00]}  d5 {[%clk 0:02:59]} 3. e5 {[%clk 0:02:57]}  c5 {[%clk 0:02:59]} 4. dxc5 {[%clk 0:02:56]}  Nc6 {[%clk 0:02:58]} 5. a3 {[%clk 0:02:56]}  a5 {[%clk 0:02:58]} 6. f4 {[%clk 0:02:55]}  Nh6 {[%clk 0:02:57]} 7. Nf3 {[%clk 0:02:55]}  Bg4 {[%clk 0:02:56]} 8. Bb5 {[%clk 0:02:54]}  e6 {[%clk 0:02:56]} 9. Be3 {[%clk 0:02:54]}  f6 {[%clk 0:02:50]} 10. O-O {[%clk 0:02:53]}  Be7 {[%clk 0:02:39]} 11. h3 {[%clk 0:02:51]}  Bxf3 {[%clk 0:02:39]} 12. Qxf3 {[%clk 0:02:51]}  O-O {[%clk 0:02:36]} 13. Bxc6 {[%clk 0:02:52]}  bxc6 {[%clk 0:02:35]} 14. Bd4 {[%clk 0:02:52]}  fxe5 {[%clk 0:02:31]} 15. Bxe5 {[%clk 0:02:52]}  Bxc5+ {[%clk 0:02:31]} 16. Kh1 {[%clk 0:02:51]}  Qh4 {[%clk 0:02:23]} 17. Nc3 {[%clk 0:02:48]}  Nf5 {[%clk 0:02:17]} 18. Kh2 {[%clk 0:02:42]}  Ne3 {[%clk 0:01:53]} 19. Rfc1 {[%clk 0:02:31]}  Nc4 {[%clk 0:01:48]} 20. Qg3 {[%clk 0:02:15]}  Qxg3+ {[%clk 0:01:44]} 21. Kxg3 {[%clk 0:02:16]}  Nxe5 {[%clk 0:01:11]} 22. fxe5 {[%clk 0:02:15]}  Bd4 {[%clk 0:01:11]} 23. Rf1 {[%clk 0:02:05]}  Bxe5+ {[%clk 0:01:10]} 24. Kg4 {[%clk 0:02:06]}  Rxf1 {[%clk 0:00:56]} 25. Rxf1 {[%clk 0:02:05]}  Rf8 {[%clk 0:00:57]} 26. Rxf8+ {[%clk 0:01:57]}  Kxf8 {[%clk 0:00:57]} 27. Nd1 {[%clk 0:01:57]}  a4 {[%clk 0:00:45]} 28. b3 {[%clk 0:01:55]}  axb3 {[%clk 0:00:44]} 29. cxb3 {[%clk 0:01:55]}  c5 {[%clk 0:00:36]} 30. Nf2 {[%clk 0:01:46]}  c4 {[%clk 0:00:35]} 31. bxc4 {[%clk 0:01:45]}  dxc4 {[%clk 0:00:36]} 32. Kf3 {[%clk 0:01:45]}  Ke7 {[%clk 0:00:24]} 33. Ke4 {[%clk 0:01:43]}  Bb2 {[%clk 0:00:21]} 34. Nd1 {[%clk 0:01:39]}  Bxa3 {[%clk 0:00:20]} 35. Kd4 {[%clk 0:01:40]}  Kf6 {[%clk 0:00:18]} 36. Kxc4 {[%clk 0:01:39]}  Kf5 {[%clk 0:00:17]} 37. Kd3 {[%clk 0:01:39]}  Kf4 {[%clk 0:00:17]} 38. Ke2 {[%clk 0:01:37]}  Kg3 {[%clk 0:00:17]} 39. Kf1 {[%clk 0:01:38]}  Bc5 {[%clk 0:00:16]} 40. Nc3 {[%clk 0:01:37]}  Bd4 {[%clk 0:00:16]} 41. Ne2+ {[%clk 0:01:38]}  Kh4 {[%clk 0:00:14]} 42. Nxd4 {[%clk 0:01:38]}  e5 {[%clk 0:00:13]} 43. Nf3+ {[%clk 0:01:39]}  Kg3 {[%clk 0:00:13]} 44. Nxe5 {[%clk 0:01:40]}  g5 {[%clk 0:00:11]} 45. Kg1 {[%clk 0:01:37]}  h5 {[%clk 0:00:11]} 46. Nf3 {[%clk 0:01:36]}  g4 {[%clk 0:00:11]} 47. hxg4 {[%clk 0:01:36]}  Kxg4 {[%clk 0:00:11]} 48. Kh2 {[%clk 0:01:35]}  h4 {[%clk 0:00:11]} 49. Ng1 {[%clk 0:01:32]}  Kf4 {[%clk 0:00:07]} 50. Kh3 {[%clk 0:01:32]}  Kg5 {[%clk 0:00:07]} 51. Nf3+ {[%clk 0:01:33]}  Kh5 {[%clk 0:00:07]} 52. Nxh4 {[%clk 0:01:34]} 1-0


[Site "https://www.chess.com"]

[Event "Titled Tuesday Blitz December 06 Late 2022"]
[White "Kaganskiy, Gleb"]
[Black "Pinheiro, Iung Alicio de O."]
[WhiteFideId "4132025"]
[BlackFideId "2104350"]
[WhiteElo "2165"]
[BlackElo "2283"]
[Result "0-1"]
[Round "08"]
[TimeControl "180+1"]
[Date "2022.12.07"]
[WhiteClock "0:00:01"]
[BlackClock "0:00:07"]

1. e4 {[%clk 0:03:00]}  c5 {[%clk 0:02:59]} 2. Nf3 {[%clk 0:03:00]}  Nc6 {[%clk 0:02:58]} 3. d4 {[%clk 0:02:57]}  cxd4 {[%clk 0:02:59]} 4. Nxd4 {[%clk 0:02:58]}  e5 {[%clk 0:03:00]} 5. Nb5 {[%clk 0:02:57]}  d6 {[%clk 0:03:00]} 6. a4 {[%clk 0:02:56]}  a6 {[%clk 0:02:56]} 7. N5a3 {[%clk 0:02:56]}  Be6 {[%clk 0:02:56]} 8. Bc4 {[%clk 0:02:56]}  Rc8 {[%clk 0:02:55]} 9. Nc3 {[%clk 0:02:55]}  Nb4 {[%clk 0:02:42]} 10. Nd5 {[%clk 0:02:47]}  Nxd5 {[%clk 0:02:05]} 11. Bxd5 {[%clk 0:02:46]}  Bxd5 {[%clk 0:02:03]} 12. Qxd5 {[%clk 0:02:44]}  Qc7 {[%clk 0:02:03]} 13. c4 {[%clk 0:02:27]}  Nf6 {[%clk 0:02:03]} 14. Qd3 {[%clk 0:02:22]}  Qc6 {[%clk 0:02:00]} 15. f3 {[%clk 0:02:15]}  Qxa4 {[%clk 0:01:54]} 16. O-O {[%clk 0:02:06]}  h6 {[%clk 0:01:47]} 17. Rd1 {[%clk 0:01:57]}  Be7 {[%clk 0:01:38]} 18. b3 {[%clk 0:01:56]}  Qc6 {[%clk 0:01:36]} 19. Nc2 {[%clk 0:01:49]}  O-O {[%clk 0:01:25]} 20. Be3 {[%clk 0:01:32]}  Rfd8 {[%clk 0:01:11]} 21. Nb4 {[%clk 0:01:30]}  Qd7 {[%clk 0:01:06]} 22. Bb6 {[%clk 0:01:27]}  Re8 {[%clk 0:00:47]} 23. Nd5 {[%clk 0:00:57]}  Nxd5 {[%clk 0:00:46]} 24. Qxd5 {[%clk 0:00:56]}  Qc6 {[%clk 0:00:46]} 25. Bf2 {[%clk 0:00:51]}  Qxd5 {[%clk 0:00:45]} 26. Rxd5 {[%clk 0:00:51]}  Rc6 {[%clk 0:00:45]} 27. Rad1 {[%clk 0:00:49]}  Rec8 {[%clk 0:00:44]} 28. Be1 {[%clk 0:00:40]}  b6 {[%clk 0:00:32]} 29. Bb4 {[%clk 0:00:38]}  Rd8 {[%clk 0:00:33]} 30. Kf1 {[%clk 0:00:27]}  f6 {[%clk 0:00:33]} 31. Ke2 {[%clk 0:00:26]}  Kf7 {[%clk 0:00:33]} 32. Ra1 {[%clk 0:00:20]}  Ra8 {[%clk 0:00:29]} 33. g3 {[%clk 0:00:15]}  Ke6 {[%clk 0:00:26]} 34. f4 {[%clk 0:00:15]}  g6 {[%clk 0:00:26]} 35. Kf3 {[%clk 0:00:14]}  a5 {[%clk 0:00:19]} 36. Ba3 {[%clk 0:00:10]}  Rb8 {[%clk 0:00:17]} 37. Rad1 {[%clk 0:00:09]}  Rbc8 {[%clk 0:00:16]} 38. Rb5 {[%clk 0:00:09]}  R8c7 {[%clk 0:00:15]} 39. Rdd5 {[%clk 0:00:09]}  Rc8 {[%clk 0:00:14]} 40. Ke3 {[%clk 0:00:09]}  h5 {[%clk 0:00:14]} 41. Kf3 {[%clk 0:00:08]}  Rb8 {[%clk 0:00:14]} 42. Ke3 {[%clk 0:00:08]}  Rf8 {[%clk 0:00:14]} 43. Kf3 {[%clk 0:00:08]}  Rf7 {[%clk 0:00:13]} 44. Rd1 {[%clk 0:00:07]}  Rf8 {[%clk 0:00:13]} 45. Rbd5 {[%clk 0:00:07]}  f5 {[%clk 0:00:13]} 46. fxe5 {[%clk 0:00:04]}  fxe4+ {[%clk 0:00:09]} 47. Kxe4 {[%clk 0:00:04]}  dxe5 {[%clk 0:00:07]} 48. Rxe5+ {[%clk 0:00:02]}  Kf6 {[%clk 0:00:07]} 49. Rf1+ {[%clk 0:00:01]}  Kg7 {[%clk 0:00:07]} 50. Rxe7+ {[%clk 0:00:01]}  Kg8 {[%clk 0:00:07]} 0-1


[Site "https://www.chess.com"]

[Event "Titled Tuesday Blitz December 06 Late 2022"]
[White "Khandelwal, Ankush"]
[Black "Rastbod, Ali"]
[WhiteFideId "413470"]
[BlackFideId "12567477"]
[WhiteElo "2478"]
[BlackElo "2618"]
[Result "0-1"]
[Round "08"]
[TimeControl "180+1"]
[Date "2022.12.07"]
[WhiteClock "0:00:07"]
[BlackClock "0:00:26"]

1. e4 {[%clk 0:03:00]}  c5 {[%clk 0:02:54]} 2. Nf3 {[%clk 0:03:01]}  e6 {[%clk 0:02:55]} 3. d4 {[%clk 0:03:01]}  cxd4 {[%clk 0:02:56]} 4. Nxd4 {[%clk 0:03:02]}  Bc5 {[%clk 0:02:56]} 5. Nb3 {[%clk 0:02:47]}  Bb6 {[%clk 0:02:56]} 6. Nc3 {[%clk 0:02:44]}  Ne7 {[%clk 0:02:55]} 7. Bf4 {[%clk 0:02:34]}  O-O {[%clk 0:02:49]} 8. Bd6 {[%clk 0:02:27]}  Nbc6 {[%clk 0:02:39]} 9. Qd2 {[%clk 0:02:22]}  f5 {[%clk 0:02:38]} 10. O-O-O {[%clk 0:02:19]}  fxe4 {[%clk 0:02:28]} 11. Nxe4 {[%clk 0:02:18]}  Rf7 {[%clk 0:02:29]} 12. g4 {[%clk 0:02:11]}  a5 {[%clk 0:02:15]} 13. a4 {[%clk 0:02:08]}  Nd5 {[%clk 0:02:15]} 14. f4 {[%clk 0:02:00]}  Be3 {[%clk 0:02:11]} 15. f5 {[%clk 0:01:55]}  exf5 {[%clk 0:02:09]} 16. gxf5 {[%clk 0:01:53]}  Rxf5 {[%clk 0:02:10]} 17. Bc4 {[%clk 0:01:51]}  Bxd2+ {[%clk 0:02:05]} 18. Rxd2 {[%clk 0:01:52]}  Qe8 {[%clk 0:01:54]} 19. Rxd5 {[%clk 0:01:45]}  Rxd5 {[%clk 0:00:50]} 20. Bxd5+ {[%clk 0:01:46]}  Kh8 {[%clk 0:00:51]} 21. Rf1 {[%clk 0:01:42]}  Ne7 {[%clk 0:00:51]} 22. Bf7 {[%clk 0:01:19]}  Qd8 {[%clk 0:00:49]} 23. Bc4 {[%clk 0:00:59]}  h6 {[%clk 0:00:40]} 24. Rf7 {[%clk 0:00:28]}  Ng6 {[%clk 0:00:39]} 25. Bd3 {[%clk 0:00:22]}  Qe8 {[%clk 0:00:30]} 26. Rf1 {[%clk 0:00:16]}  b6 {[%clk 0:00:28]} 27. Nd4 {[%clk 0:00:06]}  Bb7 {[%clk 0:00:27]} 28. Ng3 {[%clk 0:00:07]}  Qe3+ {[%clk 0:00:26]} 29. Kb1 {[%clk 0:00:07]}  Qxd4 {[%clk 0:00:27]} 30. Bxg6 {[%clk 0:00:07]}  Qxd6 {[%clk 0:00:26]} 0-1


[Site "https://www.chess.com"]

[Event "Titled Tuesday Blitz December 06 Late 2022"]
[White "Kim, Sergey"]
[Black "Bongo Akanga Ndjila, Barthelemy"]
[WhiteFideId "13700570"]
[BlackFideId "10609431"]
[WhiteElo "2570"]
[BlackElo "1768"]
[Result "1-0"]
[Round "08"]
[TimeControl "180+1"]
[Date "2022.12.07"]
[WhiteClock "0:00:40"]
[BlackClock "0:00:03"]

1. d4 {[%clk 0:03:00]}  d5 {[%clk 0:02:55]} 2. c4 {[%clk 0:03:01]}  e6 {[%clk 0:02:54]} 3. Nc3 {[%clk 0:03:01]}  Nf6 {[%clk 0:02:54]} 4. Nf3 {[%clk 0:03:01]}  Be7 {[%clk 0:02:51]} 5. Bf4 {[%clk 0:03:01]}  O-O {[%clk 0:02:48]} 6. e3 {[%clk 0:03:01]}  a6 {[%clk 0:02:46]} 7. c5 {[%clk 0:03:01]}  b6 {[%clk 0:02:33]} 8. b4 {[%clk 0:03:00]}  Nc6 {[%clk 0:02:26]} 9. a3 {[%clk 0:02:57]}  b5 {[%clk 0:02:18]} 10. h3 {[%clk 0:02:54]}  Re8 {[%clk 0:02:17]} 11. Bd3 {[%clk 0:02:53]}  h6 {[%clk 0:02:16]} 12. O-O {[%clk 0:02:52]}  Bf8 {[%clk 0:02:14]} 13. Qc2 {[%clk 0:02:48]}  Ne7 {[%clk 0:02:13]} 14. Ne5 {[%clk 0:02:47]}  Bb7 {[%clk 0:02:06]} 15. a4 {[%clk 0:02:45]}  c6 {[%clk 0:02:04]} 16. f3 {[%clk 0:02:39]}  Qc8 {[%clk 0:01:56]} 17. Bh2 {[%clk 0:02:22]}  Nf5 {[%clk 0:01:55]} 18. Qf2 {[%clk 0:02:14]}  Nd7 {[%clk 0:01:32]} 19. e4 {[%clk 0:02:07]}  Nxe5 {[%clk 0:01:30]} 20. Bxe5 {[%clk 0:02:07]}  dxe4 {[%clk 0:01:29]} 21. fxe4 {[%clk 0:02:06]}  f6 {[%clk 0:01:20]} 22. Bh2 {[%clk 0:02:04]}  Ne7 {[%clk 0:01:15]} 23. Bd6 {[%clk 0:01:53]}  Qd7 {[%clk 0:01:13]} 24. Qg3 {[%clk 0:01:48]}  Rad8 {[%clk 0:01:12]} 25. e5 {[%clk 0:01:46]}  Nf5 {[%clk 0:01:09]} 26. Bxf5 {[%clk 0:01:38]}  exf5 {[%clk 0:01:09]} 27. exf6 {[%clk 0:01:36]}  Bxd6 {[%clk 0:01:08]} 28. cxd6 {[%clk 0:01:36]}  Qf7 {[%clk 0:00:59]} 29. Rxf5 {[%clk 0:01:32]}  Re6 {[%clk 0:00:55]} 30. Raf1 {[%clk 0:01:31]}  Rdxd6 {[%clk 0:00:53]} 31. fxg7 {[%clk 0:01:28]}  Rf6 {[%clk 0:00:45]} 32. Qxd6 {[%clk 0:01:04]}  Rxf5 {[%clk 0:00:44]} 33. Qb8+ {[%clk 0:00:58]}  Kxg7 {[%clk 0:00:43]} 34. Rxf5 {[%clk 0:00:59]}  Qxf5 {[%clk 0:00:41]} 35. Qxb7+ {[%clk 0:00:58]}  Kh8 {[%clk 0:00:37]} 36. Qb8+ {[%clk 0:00:57]}  Kh7 {[%clk 0:00:35]} 37. Qc7+ {[%clk 0:00:57]}  Kg8 {[%clk 0:00:33]} 38. Qd8+ {[%clk 0:00:52]}  Kh7 {[%clk 0:00:30]} 39. Qe7+ {[%clk 0:00:51]}  Kg8 {[%clk 0:00:29]} 40. Qe8+ {[%clk 0:00:47]}  Kh7 {[%clk 0:00:22]} 41. axb5 {[%clk 0:00:44]}  cxb5 {[%clk 0:00:02]} 42. Qe4 {[%clk 0:00:43]}  Qxe4 {[%clk 0:00:02]} 43. Nxe4 {[%clk 0:00:43]}  Kg6 {[%clk 0:00:01]} 44. Nc5 {[%clk 0:00:43]}  a5 {[%clk 0:00:01]} 45. bxa5 {[%clk 0:00:43]}  b4 {[%clk 0:00:01]} 46. a6 {[%clk 0:00:43]}  Kf6 {[%clk 0:00:01]} 47. a7 {[%clk 0:00:43]}  Ke7 {[%clk 0:00:02]} 48. a8=Q {[%clk 0:00:42]}  Kd6 {[%clk 0:00:03]} 49. Qe4 {[%clk 0:00:41]}  b3 {[%clk 0:00:03]} 50. Nxb3 {[%clk 0:00:40]} 1-0


[Site "https://www.chess.com"]